Cogmind - Beta 10.2 *** ADVENTURER MODE // 2021.10.13 @ 21:52:34 Player: Disco Biscuit Result: Self-destructed Performance ------------- Evolutions (1) 500 Regions Visited (3) 600 Robots Destroyed (4) 20 Value Destroyed (107) 107 Prototype IDs (0) 0 Alien Tech Used (0) 0 Bonus (47) 47 TOTAL SCORE: 1274 Bonus ------- Follower Combat Kills 47 Cogmind --------- Core Integrity 367/400 Matter 275/300 Energy 275/275 System Corruption 0% Temperature Cool (0) Movement Flying (34) Location -9/Materials Parts ------- > --- POWER (2) -------- Ion Engine Light Ion Engine > --- PROPULSION (3) --- Flight Unit Flight Unit Flight Unit > --- UTILITY (2) ------ Visual Processing Unit Sensor Array > --- WEAPON (2) ------- Mining Claw > --- INVENTORY (4) ---- Improved Heat Sink Peak State ------------ > --- POWER ------------ Ion Engine Light Ion Engine > --- PROPULSION ------- Flight Unit Flight Unit Flight Unit > --- UTILITY ---------- Visual Processing Unit Sensor Array > --- WEAPON ----------- Mining Claw > --- INVENTORY -------- Flight Unit Improved Heat Sink [Rating: 9] Favorites ----------- Power Ion Engine Engine Ion Engine Propulsion Flight Unit Wheel Compact Wheel Flight Unit Flight Unit Utility Visual Processing Unit Device Sensor Array Processor Visual Processing Unit Weapon Mining Claw Energy Gun Medium Laser Slashing Weapon Mining Claw Build | -11 -10 -10 -9 ------- Run | Scr Mat Min Mat Slots Evolved 2 | . . . 2 Power 1 | . . . 1 Propulsion 1 | . . . 1 Utility . | . . . . Weapon . | . . . . Parts Attached 15 | 5 6 1 3 Power 2 | 1 . . 1 Engine 2 | 1 . . 1 Core . | . . . . Reactor . | . . . . Propulsion 7 | 2 2 1 2 Treads . | . . . . Leg . | . . . . Wheel 2 | 2 . . . Hover . | . . . . Flight 5 | . 2 1 2 Utility 2 | . 2 . . Device 1 | . 1 . . Storage . | . . . . Processor 1 | . 1 . . Hackware . | . . . . Protection . | . . . . Artifact . | . . . . Weapon 4 | 2 2 . . Energy Gun 3 | 2 1 . . Energy Cannon . | . . . . Ballistic Gun . | . . . . Ballistic Cannon . | . . . . Launcher . | . . . . Special Weapon . | . . . . Impact Weapon . | . . . . Slashing Weapon 1 | . 1 . . Piercing Weapon . | . . . . Special Melee Weapon . | . . . . Unidentified Prototypes . | . . . . Parts Lost 2 | . 1 . 1 Power . | . . . . Propulsion 1 | . . . 1 Utility . | . . . . Weapon 1 | . 1 . . Highest Loss Streak 1 | . 1 . 1 Average Slot Usage (%) 79 | . 74 85 86 Engine 15 | . 14 14 22 Wheel 12 | . 23 . . Flight 16 | . 4 28 31 Device 7 | . 3 14 11 Processor 7 | . 3 14 11 Energy Gun 7 | . 14 . . Slashing Weapon 11 | . 10 14 11 Naked Turns . | . . . . Heaviest Build 11 | 9 10 8 11 Greatest Support 26 | 26 26 8 12 Greatest Overweight (x) 1 | . . . 1 Average Overweight (x) . | . . . . Largest Inventory Capacity 4 | 4 4 4 4 Average Capacity 4 | 4 4 4 4 Most Carried 4 | 4 4 4 3 Average Carried 3 | 1 2 4 1 Final Capacity 4 | 4 4 4 4 Final Carried 4 | 2 4 4 1 Class Distribution -------------------- 100% | Mutant Dominant Class ---------------- Mutant | -10/Materials Mutant | -10/Mines Mutant | -9/Materials Resources | -11 -10 -10 -9 ----------- Run | Scr Mat Min Mat Matter Collected 315 | 236 45 34 . Remotely . | . . . . Salvage Created 135 | . 125 10 . Parts 7 | . 6 1 . Haulers Intercepted . | . . . . Recyclers Shooed . | . . . . Parts Field Recycled . | . . . . Retrieved Matter . | . . . . Parts Self-Destructed . | . . . . Prevented . | . . . . Kills | -11 -10 -10 -9 ------- Run | Scr Mat Min Mat Combat Hostiles Destroyed 3 | . 2 1 . Melee 3 | . 2 1 . Classes Destroyed 3 | . 2 1 . Watcher 1 | . 1 . . Swarmer 1 | . . 1 . Grunt 2 | . 2 . . Best Kill Streak 1 | . 1 1 . Combat Bots Only 1 | . 1 1 . Max Kills in Single Turn 1 | . 1 1 . Gunslinging . | . . . . Exploded . | . . . . Melee 1 | . 1 1 . Uniques/NPCs Destroyed . | . . . . Combat | -11 -10 -10 -9 -------- Run | Scr Mat Min Mat Damage Taken 326 | . 130 61 135 Core 63 | . 16 14 33 Absorbed by Shields . | . . . . Core Remaining (%) 94 | 100 . 88 . Volleys Fired . | . . . . Largest . | . . . . Hottest . | . . . . Shots Fired . | . . . . Gun . | . . . . Cannon . | . . . . Launcher . | . . . . Special . | . . . . Kinetic . | . . . . Thermal . | . . . . Explosive . | . . . . Electromagnetic . | . . . . Robot Hit Streak . | . . . . Robot Miss Streak . | . . . . Penetration Max . | . . . . Secondary Targets . | . . . . Shots Hit Robots 14 | . 9 3 2 Core Hits 5 | . 4 1 . Critical Hits . | . . . . Critical Kills . | . . . . Critical Parts Destroyed . | . . . . Melee Attacks 17 | . 9 6 2 Impact . | . . . . Slashing 17 | . 9 6 2 Piercing . | . . . . Sneak Attacks . | . . . . Combat Hostiles . | . . . . Follow-up Attacks . | . . . . Damage Inflicted 337 | . 212 72 53 Guns . | . . . . Cannons . | . . . . Explosions . | . . . . Melee 337 | . 212 72 53 Ramming . | . . . . Kinetic . | . . . . Thermal . | . . . . Explosive . | . . . . Electromagnetic . | . . . . Impact . | . . . . Slashing 337 | . 212 72 53 Piercing . | . . . . Highest Corruption . | . . . . Average Corruption . | . . . . Corruption Purged . | . . . . Overload Shots . | . . . . Overflow Damage 6 | . . 6 . Projectiles . | . . . . Explosions . | . . . . Melee 6 | . . 6 . Knockbacks . | . . . . Impact . | . . . . Kinetic . | . . . . Secondary . | . . . . Self-Inflicted Damage . | . . . . Shots . | . . . . Rammed . | . . . . Targets Rammed . | . . . . Kicked . | . . . . Crushed . | . . . . Highest Temperature . | . . . . Average Temperature . | . . . . Received Heat Transfer 108 | . 78 . 30 Siege Activations . | . . . . Robots Corrupted . | . . . . Combat Hostiles . | . . . . Parts Fried . | . . . . Impact Corruptions . | . . . . Robots Melted . | . . . . Combat Hostiles . | . . . . Parts Melted . | . . . . Heat Transferred . | . . . . Parts Sabotaged . | . . . . Parts Stolen . | . . . . Parts Stripped . | . . . . Power Chain Reactions . | . . . . Missiles Intercepted . | . . . . Alert | -11 -10 -10 -9 ------- Run | Scr Mat Min Mat Peak Influence 194 | . 141 112 194 Initial 46 | . . 46 36 Average 84 | . 95 87 81 Maximum Alert Level . | . . . . Low Security (%) 100 | 100 100 100 100 Level 1 . | . . . . Level 2 . | . . . . Level 3 . | . . . . Level 4 . | . . . . Level 5 . | . . . . High Security . | . . . . Max Security . | . . . . Squads Dispatched 1 | . . . 1 Investigation . | . . . . Extermination . | . . . . Reinforcement 1 | . . . 1 Assault . | . . . . Garrison . | . . . . Intercept . | . . . . Construction Impeded . | . . . . Haulers Reinforced . | . . . . Stealth | -11 -10 -10 -9 --------- Run | Scr Mat Min Mat Distress Signals 3 | . 1 . 2 Communications Jammed . | . . . . Distress Signals . | . . . . Times Spotted 30 | . 8 7 15 Peak Tracking Total 9 | . 4 3 9 Tactical Retreats 4 | . 2 1 1 Traps | -11 -10 -10 -9 ------- Run | Scr Mat Min Mat Traps Triggered 1 | . 1 . . Indirectly . | . . . . Trap Hack Attempts . | . . . . Triggered . | . . . . Disarmed . | . . . . Reprogrammed . | . . . . Reused . | . . . . Traps Extracted . | . . . . Installed . | . . . . Triggered . | . . . . Machines | -11 -10 -10 -9 ---------- Run | Scr Mat Min Mat Machines Disabled . | . . . . Max in Single Turn . | . . . . Machines Sabotaged . | . . . . Garrisons Compromised . | . . . . Overloaded Fab Kills . | . . . . Fab Network Shutdowns . | . . . . Hacking | -11 -10 -10 -9 --------- Run | Scr Mat Min Mat Machines Accessed 5 | . 4 . 1 Terminals 3 | . 3 . . Fabricators . | . . . . Repair Stations . | . . . . Recycling Units 1 | . 1 . . Scanalyzers 1 | . . . 1 Garrison Access . | . . . . Total Hacks 13 | . 11 . 2 Successful 9 | . 7 . 2 Failed 4 | . 4 . . Catastrophic . | . . . . Database Lockouts . | . . . . Manual 5 | . 5 . . Terminals 9 | . 9 . . Fabricators . | . . . . Repair Stations . | . . . . Recycling Units 2 | . 2 . . Scanalyzers 2 | . . . 2 Garrison Access . | . . . . Terminal Hacks 4 | . 4 . . Alert Level 1 | . 1 . . Locate Traps 1 | . 1 . . Zone Layout 2 | . 2 . . Fabricator Hacks . | . . . . Repair Station Hacks . | . . . . Recycling Unit Hacks 2 | . 2 . . Retrieve Matter 1 | . 1 . . Retrieve Components 1 | . 1 . . Scanalyzer 2 | . . . 2 Insert Component 1 | . . . 1 Analyze 1 | . . . 1 Garrison Access Hacks . | . . . . Unauthorized Hacks 1 | . 1 . . Terminals 1 | . 1 . . Botnet 1 | . 1 . . Fabricators . | . . . . Repair Stations . | . . . . Recycling Units . | . . . . Scanalyzers . | . . . . Garrison Access . | . . . . Data Cores Recovered . | . . . . Used . | . . . . Hacking Detections 4 | . 3 . 1 Full Trace Events . | . . . . Feedback Events . | . . . . Feedback Blocked . | . . . . Robot Schematics Acquired . | . . . . Robots Built . | . . . . Matter . | . . . . Time . | . . . . Total Robot Build Rating . | . . . . Part Schematics Acquired 1 | . . . 1 Parts Built . | . . . . Matter . | . . . . Time . | . . . . Total Part Build Rating . | . . . . Parts Repaired . | . . . . Time . | . . . . Parts Recycled . | . . . . Recycled Matter . | . . . . Retrieved Matter . | . . . . Retrieved Components 2 | . 2 . . Parts Scanalyzed 1 | . . . 1 Part Schematics Acquired 1 | . . . 1 Parts Damaged . | . . . . Bothacking | -11 -10 -10 -9 ------------ Run | Scr Mat Min Mat Used RIF Installer . | . . . . Robots Hacked . | . . . . Non-combat . | . . . . Combat . | . . . . Robot Hacks Applied . | . . . . Relay Couplers Released . | . . . . Robots Rewired . | . . . . Allies Hacked . | . . . . Hacks Repelled . | . . . . Allies | -11 -10 -10 -9 -------- Run | Scr Mat Min Mat Total Allies 4 | . . 4 . Largest Group 3 | . . 3 3 Highest-Rated Group 40 | . . 40 40 Highest-Rated Ally 31 | . . 31 16 Total Orders . | . . . . Ally Attacks 24 | . . 5 19 Total Damage 275 | . . 43 232 Kills 4 | . . 2 2 Allies Corrupted . | . . . . Allies Melted . | . . . . Intel | -11 -10 -10 -9 ------- Run | Scr Mat Min Mat Robot Analysis Total . | . . . . Derelict Logs Recovered 1 | . . 1 . Drone Launches . | . . . . Drone Recoveries . | . . . . Exploration | -11 -10 -10 -9 ------------- Run | Scr Mat Min Mat Turns Passed 576 | 39 284 161 92 Spaces Moved 820 | 33 310 316 161 Core 5 | 5 . . . Treads . | . . . . Legs . | . . . . Wheels 238 | 28 210 . . Hover . | . . . . Flight 577 | . 100 316 161 Fastest Speed 34 | 50 37 37 34 Average Speed 52 | 83 72 37 35 Slowest Speed 117 | 90 90 37 117 Overloaded Moves . | . . . . Propulsion Burnouts . | . . . . Robots Hopped . | . . . . Cave-ins Triggered . | . . . . Exploration Rate (%) 36 | 3 40 83 21 Regions Visited 3 Branch Regions 1 Pre-discovered Areas . | . . . . Known Exits Taken 1 | . . 1 . Unknown Exits Taken 2 | 1 1 . . Scrap Searched 1 | . . 1 . Spaces Dug . | . . . . Terrain Destroyed . | . . . . Melee . | . . . . Projectile . | . . . . AOE . | . . . . Terrain Rammed . | . . . . Walls Destroyed . | . . . . Machines Disabled . | . . . . Actions | -11 -10 -10 -9 --------- Run | Scr Mat Min Mat Total 932 | 44 350 347 191 Wait 61 | . 12 24 25 Move 817 | 32 309 315 161 Hop . | . . . . Pick Up 16 | 7 9 . . Fast Attach . | . . . . Attach 11 | 5 3 . 3 Detach . | . . . . Swap 4 | . 3 1 . Drop 6 | . 5 1 . Fire . | . . . . Melee 17 | . 9 6 2 Ram . | . . . . Kick . | . . . . Crush . | . . . . Escape Stasis . | . . . . Rewire . | . . . . Trap . | . . . . Miscellaneous . | . . . . Route ------- -11/Scrapyard -10/Materials -10/Mines (discovered 2 exits: *Mat x2) -9/Materials History --------- Turn | Location | Event 18 | -11/Scrapyard | Discovered new exit (range 15) 40 | -11/Scrapyard | Entered Materials 305 | -10/Materials | Build established: Mutant 311 | -10/Materials | Discovered new exit (range 8) 324 | -10/Materials | Entered Mines 325 | -10/Mines | Identified exit to Materials 332 | -10/Mines | Received a Mining Laser from a helpful Derelict 398 | -10/Mines | Assembled infested the area 403 | -10/Mines | Assisted by a Guerilla fighting off Assembled 479 | -10/Mines | Discovered exit to Materials (range 9) 483 | -10/Mines | Assisted by bots powering up and referring to "LRC-V3" 485 | -10/Mines | Entered Materials 485 | -9/Materials | Accompanied by 3 allies 485 | -9/Materials | Evolved 2 slots: Power x1, Propulsion x1 577 | -9/Materials | Self-destructed Last Messages --------------- GOAL=ESCAPE 00489_ Connecting with Scanalyzer... >>Insert(Flight Unit) Scanning Flight Unit... Ready to analyze. >>Scanalyze Scanning: Flight Unit... Schematic downloaded. 00495_ O-16 Technician: "IFF HANDSHAKE FAILED. SECURING TERMINAL." 00496_ O-16 Technician uses terminal to summon reinforcements. 00496_ ALERT: Hostiles spotted, dispatching reinforcements to Terminal M003. 00496_ O-16 Technician locks terminal. 00509_ W-16 Scout distress signal alerts nearby ally. 00541_ K-01 Serf collects debris. 00566_ Flight Unit destroyed. 00567_ Destroyed Hover Unit. 00569_ S-10 Pest destroyed. 00571_ Destroyed Hover Unit. 00575_ W-16 Scout destroyed. Map ----- +----------------------------------------------------+ | | | | | | | | | | | | | | | | | | | | | | | | | | | | | ???????????????????########??????????? | | ???????????????????# #??????????? | | ???????????????????# """ #??????????? | | ???????????????????# "T" #??????????? | | ???????????????????# #?????????## | | ???????????????????# #?????????# | | ???????????????????# #?????????# | | ???????????????????####+############# | | ???????????????????# / | | ????????????######## ############# | | ????????????#]]**!!# #???????????# | | ????????????#@]**!!# #???????????## | | ????????????# # #????????????? | | ??????# ### # #????????????? | | ??????# o #????????????? | | ??????+ g #????????????? | | ??????# ###+##### #????????????? | | ??????# ?????????# #######??????? | | ??????# ??????????#% ## ######?? | | ??????#???????????# s #?? | | ??????????????????# s[ +?? | | ??????????????????# ##### #### #?? | | ??????????????????# ######+###??# #?? | | ??????????????????# ## #??# #?? | | ??????????????????# ## " #??# #?? | | ??????????????????# ## """ #### #?? | | ??????????????????# ## """ + #?? | | ??????????????????# ## """ #### #?? | | ??????????????????# ## "" #??# #?? | | ??????????????????# ## """ #??# #?? | | ??????????????????# ## "" #??# #?? | | ?????????????????? ## """ #??# #?? | | ?????????????????? ## " #### ### | | ?????????????????? ?# # | | ?????????????????? ?######### | | ?????????????????? ?????????# | +----------------------------------------------------+ Best States ------------- Heat Dissipation 28 Energy Generation 15 Energy Capacity 275 Matter Stores 300 Matter Capacity 300 Sight Range 18 Robot Scan Range 10 Terrain Scan Density 10 Resistance: KI 20 Resistance: TH 20 Resistance: EX 20 Resistance: EM 20 Resistance: I 20 Resistance: S 20 Resistance: P 20 Evasion (%) 63 Offensive Hacking 10 Item Schematics ----------------- Flight Unit | -9/Materials | Scanalyzed Robot Schematics ------------------ None Fabricated ------------ Nothing Alien Tech Used ----------------- None Achievements -------------- None Challenges ------------ None Game ------ Seed BackupLaserCloak Manual? 0 Play Time 00:10:48 Cumulative 22.8 hours Start 2021.10.13 @ 21:41:55 End 2021.10.13 @ 21:52:34 Sessions 1 Manual Loads 0 Difficulty Adventurer Special Mode None Game No. 70 Rogue 60 Adventurer 10 Explorer 0 Win Type - Total 0 Types 0/0/0/0/0/0/0/0/0 Lore% 15 Gallery% 29 Achievement% 22 Wizard Run 0 Options --------- ASCII 0 Keyboard 0 Movement Numpad Keybinds 0 Fullscreen 1 Font 18/SmallcapsGlow Map View 76x50 Tactical HUD 1 Map Filters NONE Filters NONE Steam 1 RUN: 6cdb2169-f391-456c-ba34-4fa1a5bf2793